[Event "Titled Tuesday Blitz July 25 Early 2023"]
[White "dodoucb"]
[Black "Lakshmi C"]
[BlackFideId "25035347"]
[WhiteElo "2395"]
[BlackElo "2080"]
[Result "1-0"]
[Round "3"]
[TimeControl "180+2"]
[Date "2023.07.25"]
[WhiteClock "0:01:34"]
[BlackClock "0:00:02"]
[Board "240"]

1. d4 {[%clk 0:02:59]}  Nf6 {[%clk 0:02:58]} 2. Nf3 {[%clk 0:02:59]}  e6 {[%clk 0:02:57]} 3. c4 {[%clk 0:03:00]}  b6 {[%clk 0:02:55]} 4. g3 {[%clk 0:02:59]}  Bb7 {[%clk 0:02:56]} 5. Bg2 {[%clk 0:02:59]}  Be7 {[%clk 0:02:56]} 6. O-O {[%clk 0:02:59]}  O-O {[%clk 0:02:57]} 7. Nc3 {[%clk 0:03:00]}  Ne4 {[%clk 0:02:57]} 8. Bf4 {[%clk 0:02:56]}  f5 {[%clk 0:02:42]} 9. Rc1 {[%clk 0:02:55]}  d6 {[%clk 0:02:40]} 10. a3 {[%clk 0:02:54]}  Nd7 {[%clk 0:02:38]} 11. b4 {[%clk 0:02:47]}  Bf6 {[%clk 0:02:35]} 12. h4 {[%clk 0:02:41]}  e5 {[%clk 0:02:32]} 13. dxe5 {[%clk 0:02:40]}  dxe5 {[%clk 0:02:31]} 14. Be3 {[%clk 0:02:32]}  Nxc3 {[%clk 0:02:31]} 15. Rxc3 {[%clk 0:02:31]}  e4 {[%clk 0:02:31]} 16. Nd4 {[%clk 0:02:30]}  Qe8 {[%clk 0:01:33]} 17. c5 {[%clk 0:02:26]}  Bc8 {[%clk 0:00:36]} 18. Nb5 {[%clk 0:02:08]}  Be5 {[%clk 0:00:16]} 19. Qd5+ {[%clk 0:02:05]}  Kh8 {[%clk 0:00:15]} 20. Qxa8 {[%clk 0:02:05]}  Bxc3 {[%clk 0:00:10]} 21. Nxc3 {[%clk 0:02:03]}  Qe5 {[%clk 0:00:08]} 22. c6 {[%clk 0:01:51]}  Nf6 {[%clk 0:00:03]} 23. Qxa7 {[%clk 0:01:41]}  Qxc3 {[%clk 0:00:02]} 24. Qxc7 {[%clk 0:01:41]}  Ba6 {[%clk 0:00:02]} 25. Rc1 {[%clk 0:01:34]} 1-0


[Site "https://www.chess.com"]

[Event "Titled Tuesday Blitz July 25 Early 2023"]
[White "Mika, Tomasz"]
[Black "Semenova, Alina"]
[WhiteFideId "1132970"]
[BlackFideId "24113875"]
[WhiteElo "2388"]
[BlackElo "2076"]
[Result "0-1"]
[Round "3"]
[TimeControl "180+2"]
[Date "2023.07.25"]
[WhiteClock "0:00:28"]
[BlackClock "0:00:06"]
[Board "241"]

1. e4 {[%clk 0:03:00]}  e6 {[%clk 0:02:59]} 2. d4 {[%clk 0:02:57]}  d5 {[%clk 0:03:00]} 3. Bd3 {[%clk 0:02:56]}  Nf6 {[%clk 0:02:59]} 4. e5 {[%clk 0:02:56]}  Nfd7 {[%clk 0:02:59]} 5. c3 {[%clk 0:02:56]}  c5 {[%clk 0:02:59]} 6. Nf3 {[%clk 0:02:55]}  Nc6 {[%clk 0:02:59]} 7. O-O {[%clk 0:02:55]}  Qb6 {[%clk 0:02:53]} 8. Ng5 {[%clk 0:02:45]}  h6 {[%clk 0:02:51]} 9. Qh5 {[%clk 0:02:42]}  Nd8 {[%clk 0:02:43]} 10. Nxf7 {[%clk 0:02:35]}  Nxf7 {[%clk 0:02:44]} 11. Bg6 {[%clk 0:02:34]}  cxd4 {[%clk 0:02:44]} 12. Bxf7+ {[%clk 0:02:33]}  Kd8 {[%clk 0:02:44]} 13. cxd4 {[%clk 0:02:25]}  Qxd4 {[%clk 0:02:40]} 14. Bg5+ {[%clk 0:02:12]}  hxg5 {[%clk 0:01:59]} 15. Qxh8 {[%clk 0:02:10]}  Ke7 {[%clk 0:01:59]} 16. Bg6 {[%clk 0:02:04]}  Qxb2 {[%clk 0:01:58]} 17. Qh5 {[%clk 0:01:50]}  Qxa1 {[%clk 0:01:44]} 18. Qxg5+ {[%clk 0:01:50]}  Nf6 {[%clk 0:01:44]} 19. exf6+ {[%clk 0:01:31]}  Qxf6 {[%clk 0:01:45]} 20. Qg3 {[%clk 0:01:31]}  Bd7 {[%clk 0:01:41]} 21. Nd2 {[%clk 0:01:26]}  Kd8 {[%clk 0:01:18]} 22. Nf3 {[%clk 0:01:13]}  Rc8 {[%clk 0:01:17]} 23. Ne5 {[%clk 0:01:12]}  Bc5 {[%clk 0:01:09]} 24. Bd3 {[%clk 0:01:05]}  Bd6 {[%clk 0:00:40]} 25. f4 {[%clk 0:01:02]}  Rc3 {[%clk 0:00:18]} 26. h3 {[%clk 0:00:52]}  Bb5 {[%clk 0:00:16]} 27. Rd1 {[%clk 0:00:46]}  Bxd3 {[%clk 0:00:16]} 28. Rxd3 {[%clk 0:00:43]}  Rxd3 {[%clk 0:00:16]} 29. Nxd3 {[%clk 0:00:42]}  Qd4+ {[%clk 0:00:16]} 30. Kh2 {[%clk 0:00:41]}  g5 {[%clk 0:00:14]} 31. Ne5 {[%clk 0:00:28]}  Qxf4 {[%clk 0:00:11]} 32. Nf7+ {[%clk 0:00:27]}  Kd7 {[%clk 0:00:08]} 33. Nxd6 {[%clk 0:00:28]}  Kxd6 {[%clk 0:00:05]} 34. Qxf4+ {[%clk 0:00:25]}  gxf4 {[%clk 0:00:06]} 35. h4 {[%clk 0:00:26]}  Ke7 {[%clk 0:00:06]} 36. Kg1 {[%clk 0:00:26]}  Kf6 {[%clk 0:00:06]} 37. Kf2 {[%clk 0:00:27]}  Kf5 {[%clk 0:00:06]} 38. Kf3 {[%clk 0:00:28]}  e5 {[%clk 0:00:06]} 0-1


[Site "https://www.chess.com"]

[Event "Titled Tuesday Blitz July 25 Early 2023"]
[White "Astafurov, Arseniy"]
[Black "Wisniowski, Natalie"]
[WhiteFideId "24175218"]
[BlackFideId "30929261"]
[WhiteElo "2386"]
[BlackElo "2069"]
[Result "1-0"]
[Round "3"]
[TimeControl "180+2"]
[Date "2023.07.25"]
[WhiteClock "0:00:03"]
[BlackClock "0:00:01"]
[Board "242"]

1. c4 {[%clk 0:02:58]}  Nf6 {[%clk 0:02:56]} 2. Nc3 {[%clk 0:02:58]}  g6 {[%clk 0:02:56]} 3. Nf3 {[%clk 0:02:59]}  Bg7 {[%clk 0:02:56]} 4. g3 {[%clk 0:03:00]}  O-O {[%clk 0:02:56]} 5. Bg2 {[%clk 0:03:00]}  d6 {[%clk 0:02:55]} 6. d4 {[%clk 0:03:00]}  Nbd7 {[%clk 0:02:53]} 7. O-O {[%clk 0:03:01]}  e5 {[%clk 0:02:49]} 8. Qc2 {[%clk 0:03:01]}  exd4 {[%clk 0:02:42]} 9. Nxd4 {[%clk 0:03:02]}  Ne5 {[%clk 0:02:40]} 10. b3 {[%clk 0:02:52]}  Re8 {[%clk 0:02:31]} 11. Rd1 {[%clk 0:02:49]}  Qe7 {[%clk 0:02:22]} 12. Bg5 {[%clk 0:02:21]}  Qf8 {[%clk 0:02:16]} 13. h3 {[%clk 0:01:31]}  Rb8 {[%clk 0:02:04]} 14. Ndb5 {[%clk 0:01:21]}  c6 {[%clk 0:01:50]} 15. Nxd6 {[%clk 0:01:20]}  Rd8 {[%clk 0:01:44]} 16. Nce4 {[%clk 0:00:34]}  Ned7 {[%clk 0:01:08]} 17. Rac1 {[%clk 0:00:17]}  h6 {[%clk 0:01:05]} 18. Nxf6+ {[%clk 0:00:15]}  Nxf6 {[%clk 0:01:02]} 19. Bxf6 {[%clk 0:00:13]}  Bxf6 {[%clk 0:01:01]} 20. Nxc8 {[%clk 0:00:13]}  Rbxc8 {[%clk 0:00:59]} 21. Rxd8 {[%clk 0:00:13]}  Rxd8 {[%clk 0:00:59]} 22. Rd1 {[%clk 0:00:13]}  Bg7 {[%clk 0:00:51]} 23. e3 {[%clk 0:00:13]}  Qe7 {[%clk 0:00:50]} 24. Bf3 {[%clk 0:00:13]}  Rd6 {[%clk 0:00:46]} 25. Kg2 {[%clk 0:00:13]}  Qd7 {[%clk 0:00:46]} 26. Rxd6 {[%clk 0:00:13]}  Qxd6 {[%clk 0:00:47]} 27. Qe4 {[%clk 0:00:12]}  Kh7 {[%clk 0:00:45]} 28. Qe8 {[%clk 0:00:11]}  Qc7 {[%clk 0:00:39]} 29. h4 {[%clk 0:00:10]}  h5 {[%clk 0:00:38]} 30. c5 {[%clk 0:00:07]}  Bc3 {[%clk 0:00:21]} 31. Be2 {[%clk 0:00:07]}  Kg7 {[%clk 0:00:18]} 32. Bc4 {[%clk 0:00:06]}  Bb4 {[%clk 0:00:17]} 33. Qe4 {[%clk 0:00:02]}  Bxc5 {[%clk 0:00:16]} 34. Qd3 {[%clk 0:00:03]}  Be7 {[%clk 0:00:15]} 35. Qe2 {[%clk 0:00:02]}  Bf6 {[%clk 0:00:15]} 36. Bd3 {[%clk 0:00:03]}  Qd6 {[%clk 0:00:15]} 37. Be4 {[%clk 0:00:03]}  b6 {[%clk 0:00:14]} 38. Bf3 {[%clk 0:00:03]}  c5 {[%clk 0:00:15]} 39. Qb5 {[%clk 0:00:04]}  Qe5 {[%clk 0:00:14]} 40. Qd7 {[%clk 0:00:04]}  Qe7 {[%clk 0:00:13]} 41. Qc8 {[%clk 0:00:04]}  b5 {[%clk 0:00:11]} 42. Bd5 {[%clk 0:00:04]}  a5 {[%clk 0:00:10]} 43. Qa8 {[%clk 0:00:04]}  Qd6 {[%clk 0:00:09]} 44. e4 {[%clk 0:00:04]}  c4 {[%clk 0:00:08]} 45. bxc4 {[%clk 0:00:04]}  bxc4 {[%clk 0:00:08]} 46. Qxa5 {[%clk 0:00:04]}  c3 {[%clk 0:00:08]} 47. Qa4 {[%clk 0:00:03]}  Qc7 {[%clk 0:00:07]} 48. Bb3 {[%clk 0:00:03]}  Qb7 {[%clk 0:00:06]} 49. Qc4 {[%clk 0:00:03]}  Qa8 {[%clk 0:00:05]} 50. Qd3 {[%clk 0:00:03]}  Qb7 {[%clk 0:00:05]} 51. Qc4 {[%clk 0:00:03]}  Qe7 {[%clk 0:00:05]} 52. a4 {[%clk 0:00:03]}  Qf8 {[%clk 0:00:05]} 53. a5 {[%clk 0:00:04]}  Qe7 {[%clk 0:00:05]} 54. a6 {[%clk 0:00:04]}  Qa7 {[%clk 0:00:05]} 55. f3 {[%clk 0:00:04]}  Bd4 {[%clk 0:00:05]} 56. f4 {[%clk 0:00:04]}  Bf6 {[%clk 0:00:03]} 57. e5 {[%clk 0:00:05]}  Bd8 {[%clk 0:00:04]} 58. Qd5 {[%clk 0:00:04]}  Bb6 {[%clk 0:00:04]} 59. Qc4 {[%clk 0:00:03]}  Bd4 {[%clk 0:00:04]} 60. Kh2 {[%clk 0:00:03]}  Kg8 {[%clk 0:00:03]} 61. e6 {[%clk 0:00:04]}  fxe6 {[%clk 0:00:03]} 62. Qxe6+ {[%clk 0:00:05]}  Kg7 {[%clk 0:00:03]} 63. Qg8+ {[%clk 0:00:05]}  Kf6 {[%clk 0:00:03]} 64. Qh8+ {[%clk 0:00:05]}  Ke7 {[%clk 0:00:03]} 65. Qh7+ {[%clk 0:00:05]}  Kd8 {[%clk 0:00:02]} 66. Qxg6 {[%clk 0:00:06]}  Kc8 {[%clk 0:00:02]} 67. Qg8+ {[%clk 0:00:06]}  Kd7 {[%clk 0:00:02]} 68. Qf7+ {[%clk 0:00:05]}  Kd6 {[%clk 0:00:02]} 69. Qxh5 {[%clk 0:00:05]}  Kc7 {[%clk 0:00:02]} 70. Qf7+ {[%clk 0:00:05]}  Kb8 {[%clk 0:00:03]} 71. Qe8+ {[%clk 0:00:06]}  Kc7 {[%clk 0:00:03]} 72. Qe7+ {[%clk 0:00:06]}  Kb6 {[%clk 0:00:04]} 73. Qd6+ {[%clk 0:00:05]}  Kb5 {[%clk 0:00:04]} 74. Bc2 {[%clk 0:00:05]}  Ka5 {[%clk 0:00:02]} 75. Qd5+ {[%clk 0:00:04]}  Kb4 {[%clk 0:00:02]} 76. h5 {[%clk 0:00:04]}  Ka3 {[%clk 0:00:02]} 77. h6 {[%clk 0:00:04]}  Kb2 {[%clk 0:00:02]} 78. Qb3+ {[%clk 0:00:05]}  Kc1 {[%clk 0:00:02]} 79. h7 {[%clk 0:00:05]}  Kd2 {[%clk 0:00:01]} 80. Qb1 {[%clk 0:00:03]}  Ke3 {[%clk 0:00:01]} 81. Qe1+ {[%clk 0:00:03]}  Kf3 {[%clk 0:00:01]} 82. Be4+ {[%clk 0:00:03]} 1-0


[Site "https://www.chess.com"]

[Event "Titled Tuesday Blitz July 25 Early 2023"]
[White "Winkels, Marcel"]
[Black "Li, Hui"]
[WhiteFideId "1003887"]
[BlackFideId "15400310"]
[WhiteElo "2049"]
[BlackElo "2386"]
[Result "0-1"]
[Round "3"]
[TimeControl "180+2"]
[Date "2023.07.25"]
[WhiteClock "0:00:35"]
[BlackClock "0:00:04"]
[Board "243"]

1. e4 {[%clk 0:03:00]}  e5 {[%clk 0:02:58]} 2. Nf3 {[%clk 0:03:00]}  Nf6 {[%clk 0:02:59]} 3. Nxe5 {[%clk 0:02:58]}  d6 {[%clk 0:02:59]} 4. Nf3 {[%clk 0:02:58]}  Nxe4 {[%clk 0:03:00]} 5. d4 {[%clk 0:02:58]}  d5 {[%clk 0:03:00]} 6. Bd3 {[%clk 0:02:58]}  Be7 {[%clk 0:03:01]} 7. O-O {[%clk 0:02:57]}  Nc6 {[%clk 0:03:01]} 8. c4 {[%clk 0:02:57]}  Nb4 {[%clk 0:03:01]} 9. Be2 {[%clk 0:02:48]}  O-O {[%clk 0:03:01]} 10. a3 {[%clk 0:02:46]}  Nc6 {[%clk 0:03:01]} 11. Nc3 {[%clk 0:02:45]}  Nxc3 {[%clk 0:02:59]} 12. bxc3 {[%clk 0:02:45]}  Bf5 {[%clk 0:02:59]} 13. Bf4 {[%clk 0:02:29]}  Re8 {[%clk 0:02:55]} 14. Re1 {[%clk 0:02:28]}  dxc4 {[%clk 0:02:54]} 15. Bxc4 {[%clk 0:02:27]}  Bd6 {[%clk 0:02:54]} 16. Bxd6 {[%clk 0:02:24]}  Qxd6 {[%clk 0:02:46]} 17. Qb3 {[%clk 0:02:06]}  Bg6 {[%clk 0:02:34]} 18. Bb5 {[%clk 0:01:49]}  Rxe1+ {[%clk 0:02:19]} 19. Rxe1 {[%clk 0:01:48]}  a6 {[%clk 0:01:56]} 20. Bxc6 {[%clk 0:01:44]}  Qxc6 {[%clk 0:01:56]} 21. Ne5 {[%clk 0:01:44]}  Qb5 {[%clk 0:01:46]} 22. Qb4 {[%clk 0:01:35]}  Qxb4 {[%clk 0:01:44]} 23. axb4 {[%clk 0:01:35]}  f6 {[%clk 0:01:26]} 24. Nxg6 {[%clk 0:01:33]}  hxg6 {[%clk 0:01:27]} 25. Re7 {[%clk 0:01:33]}  a5 {[%clk 0:01:27]} 26. b5 {[%clk 0:01:30]}  a4 {[%clk 0:01:26]} 27. Re2 {[%clk 0:01:16]}  a3 {[%clk 0:01:24]} 28. Ra2 {[%clk 0:01:17]}  Kf7 {[%clk 0:01:24]} 29. Kf1 {[%clk 0:01:15]}  Ke6 {[%clk 0:01:24]} 30. Ke2 {[%clk 0:01:16]}  Ra5 {[%clk 0:01:11]} 31. c4 {[%clk 0:01:15]}  c6 {[%clk 0:00:54]} 32. bxc6 {[%clk 0:01:14]}  bxc6 {[%clk 0:00:54]} 33. Kd3 {[%clk 0:01:14]}  Kd6 {[%clk 0:00:42]} 34. Kc3 {[%clk 0:01:13]}  Ra8 {[%clk 0:00:33]} 35. Kb3 {[%clk 0:01:12]}  Rh8 {[%clk 0:00:24]} 36. h3 {[%clk 0:01:11]}  Re8 {[%clk 0:00:25]} 37. Kxa3 {[%clk 0:01:08]}  Re4 {[%clk 0:00:24]} 38. Rd2 {[%clk 0:01:05]}  c5 {[%clk 0:00:18]} 39. dxc5+ {[%clk 0:00:54]}  Kxc5 {[%clk 0:00:19]} 40. Rd7 {[%clk 0:00:54]}  Kxc4 {[%clk 0:00:10]} 41. Rxg7 {[%clk 0:00:50]}  g5 {[%clk 0:00:10]} 42. Rf7 {[%clk 0:00:43]}  Rf4 {[%clk 0:00:10]} 43. f3 {[%clk 0:00:42]}  Kd3 {[%clk 0:00:10]} 44. Re7 {[%clk 0:00:40]}  Rc4 {[%clk 0:00:04]} 45. Kb3 {[%clk 0:00:39]}  Rc3+ {[%clk 0:00:05]} 46. Kb2 {[%clk 0:00:39]}  Rc2+ {[%clk 0:00:05]} 47. Kb1 {[%clk 0:00:39]}  Rxg2 {[%clk 0:00:05]} 48. Re6 {[%clk 0:00:37]}  f5 {[%clk 0:00:04]} 49. Rf6 {[%clk 0:00:36]}  f4 {[%clk 0:00:04]} 50. h4 {[%clk 0:00:36]}  gxh4 {[%clk 0:00:03]} 51. Rxf4 {[%clk 0:00:35]}  h3 {[%clk 0:00:03]} 52. Rh4 {[%clk 0:00:35]}  h2 {[%clk 0:00:04]} 0-1


[Site "https://www.chess.com"]

[Event "Titled Tuesday Blitz July 25 Early 2023"]
[White "Goughfather"]
[Black "Grekh, Andrey"]
[BlackFideId "14112418"]
[WhiteElo "2042"]
[BlackElo "2377"]
[Result "1-0"]
[Round "3"]
[TimeControl "180+2"]
[Date "2023.07.25"]
[WhiteClock "0:00:14"]
[BlackClock "0:00:23"]
[Board "244"]

1. d4 {[%clk 0:02:55]}  Nf6 {[%clk 0:02:59]} 2. Nc3 {[%clk 0:02:55]}  e6 {[%clk 0:02:58]} 3. e4 {[%clk 0:02:45]}  d5 {[%clk 0:02:58]} 4. exd5 {[%clk 0:02:43]}  Nxd5 {[%clk 0:02:56]} 5. Bd2 {[%clk 0:02:35]}  Be7 {[%clk 0:02:56]} 6. Nf3 {[%clk 0:02:31]}  O-O {[%clk 0:02:55]} 7. a3 {[%clk 0:02:14]}  b6 {[%clk 0:02:50]} 8. Bd3 {[%clk 0:02:09]}  Bb7 {[%clk 0:02:49]} 9. Qe2 {[%clk 0:02:07]}  Nd7 {[%clk 0:02:46]} 10. Ne4 {[%clk 0:01:48]}  N7f6 {[%clk 0:02:44]} 11. c4 {[%clk 0:01:38]}  c5 {[%clk 0:02:00]} 12. cxd5 {[%clk 0:01:35]}  exd5 {[%clk 0:02:00]} 13. Nxf6+ {[%clk 0:01:13]}  Bxf6 {[%clk 0:02:01]} 14. O-O {[%clk 0:01:13]}  Re8 {[%clk 0:02:00]} 15. Qd1 {[%clk 0:01:12]}  cxd4 {[%clk 0:01:41]} 16. Rc1 {[%clk 0:01:09]}  Qd6 {[%clk 0:01:40]} 17. Re1 {[%clk 0:01:00]}  g6 {[%clk 0:01:31]} 18. g3 {[%clk 0:00:50]}  Re6 {[%clk 0:01:25]} 19. Bf4 {[%clk 0:00:49]}  Qd7 {[%clk 0:01:22]} 20. Ne5 {[%clk 0:00:40]}  Qe8 {[%clk 0:01:22]} 21. Ng4 {[%clk 0:00:39]}  Bg7 {[%clk 0:01:20]} 22. Nh6+ {[%clk 0:00:35]}  Kh8 {[%clk 0:01:14]} 23. Qd2 {[%clk 0:00:31]}  Rc8 {[%clk 0:01:03]} 24. Rxe6 {[%clk 0:00:29]}  fxe6 {[%clk 0:01:00]} 25. Rxc8 {[%clk 0:00:24]}  Bxc8 {[%clk 0:00:57]} 26. Qe2 {[%clk 0:00:24]}  e5 {[%clk 0:00:57]} 27. Bxe5 {[%clk 0:00:20]}  Qe6 {[%clk 0:00:33]} 28. f3 {[%clk 0:00:12]}  Bd7 {[%clk 0:00:26]} 29. Bxg7+ {[%clk 0:00:11]}  Kxg7 {[%clk 0:00:27]} 30. Qxe6 {[%clk 0:00:11]}  Bxe6 {[%clk 0:00:28]} 31. Ng4 {[%clk 0:00:12]}  h5 {[%clk 0:00:28]} 32. Ne5 {[%clk 0:00:12]}  Kf6 {[%clk 0:00:28]} 33. Nc6 {[%clk 0:00:12]}  Bd7 {[%clk 0:00:26]} 34. Nxd4 {[%clk 0:00:13]}  Ke5 {[%clk 0:00:27]} 35. Ne2 {[%clk 0:00:11]}  a6 {[%clk 0:00:27]} 36. f4+ {[%clk 0:00:12]}  Kd6 {[%clk 0:00:27]} 37. Kf2 {[%clk 0:00:12]}  Kc5 {[%clk 0:00:26]} 38. Ke3 {[%clk 0:00:13]}  a5 {[%clk 0:00:24]} 39. Nd4 {[%clk 0:00:14]}  Bc8 {[%clk 0:00:23]} 40. Bxg6 {[%clk 0:00:14]} 1-0


[Site "https://www.chess.com"]

[Event "Titled Tuesday Blitz July 25 Early 2023"]
[White "Namitbir Singh Walia"]
[Black "Maluco_do_Natal_00"]
[WhiteFideId "35071068"]
[WhiteElo "2366"]
[BlackElo "2042"]
[Result "1-0"]
[Round "3"]
[TimeControl "180+2"]
[Date "2023.07.25"]
[WhiteClock "0:00:07"]
[BlackClock "0:00:02"]
[Board "245"]

1. e4 {[%clk 0:03:00]}  c5 {[%clk 0:02:38]} 2. d4 {[%clk 0:02:55]}  cxd4 {[%clk 0:02:38]} 3. c3 {[%clk 0:02:55]}  dxc3 {[%clk 0:02:39]} 4. Nxc3 {[%clk 0:02:56]}  Nc6 {[%clk 0:02:39]} 5. Nf3 {[%clk 0:02:57]}  e6 {[%clk 0:02:39]} 6. Bc4 {[%clk 0:02:57]}  d6 {[%clk 0:02:39]} 7. O-O {[%clk 0:02:58]}  a6 {[%clk 0:02:40]} 8. Qe2 {[%clk 0:02:56]}  b5 {[%clk 0:02:40]} 9. Bb3 {[%clk 0:02:56]}  Ra7 {[%clk 0:02:41]} 10. Rd1 {[%clk 0:02:54]}  Rd7 {[%clk 0:02:41]} 11. Bf4 {[%clk 0:02:45]}  h6 {[%clk 0:02:38]} 12. Rac1 {[%clk 0:02:46]}  Na5 {[%clk 0:02:19]} 13. Bc2 {[%clk 0:02:36]}  Bb7 {[%clk 0:02:11]} 14. Bd3 {[%clk 0:02:33]}  Ne7 {[%clk 0:01:43]} 15. a4 {[%clk 0:02:31]}  b4 {[%clk 0:01:31]} 16. Na2 {[%clk 0:02:30]}  Nb3 {[%clk 0:01:23]} 17. Rc2 {[%clk 0:02:30]}  Nc5 {[%clk 0:01:18]} 18. Nxb4 {[%clk 0:02:28]}  Nxd3 {[%clk 0:01:18]} 19. Qxd3 {[%clk 0:02:24]}  Qb6 {[%clk 0:01:11]} 20. Na2 {[%clk 0:01:59]}  Ng6 {[%clk 0:01:02]} 21. Be3 {[%clk 0:01:58]}  Qa5 {[%clk 0:00:51]} 22. Nc3 {[%clk 0:01:40]}  Be7 {[%clk 0:00:46]} 23. b4 {[%clk 0:01:03]}  Qh5 {[%clk 0:00:14]} 24. b5 {[%clk 0:01:00]}  axb5 {[%clk 0:00:13]} 25. Nxb5 {[%clk 0:00:59]}  O-O {[%clk 0:00:12]} 26. Rdc1 {[%clk 0:00:37]}  Ne5 {[%clk 0:00:09]} 27. Nxe5 {[%clk 0:00:36]}  Qxe5 {[%clk 0:00:08]} 28. Rc4 {[%clk 0:00:21]}  d5 {[%clk 0:00:08]} 29. exd5 {[%clk 0:00:20]}  Bxd5 {[%clk 0:00:07]} 30. Rd4 {[%clk 0:00:20]}  Bd6 {[%clk 0:00:06]} 31. Bf4 {[%clk 0:00:20]}  Qf6 {[%clk 0:00:05]} 32. Bxd6 {[%clk 0:00:20]}  Rxd6 {[%clk 0:00:05]} 33. Nxd6 {[%clk 0:00:20]}  Qg5 {[%clk 0:00:05]} 34. Qf1 {[%clk 0:00:08]}  Rd8 {[%clk 0:00:02]} 35. Ne4 {[%clk 0:00:07]} 1-0


[Site "https://www.chess.com"]

[Event "Titled Tuesday Blitz July 25 Early 2023"]
[White "Bogumil, Tatiana"]
[Black "Fajdetic, Hrvoje"]
[WhiteFideId "4110579"]
[BlackFideId "14501945"]
[WhiteElo "2034"]
[BlackElo "2359"]
[Result "0-1"]
[Round "3"]
[TimeControl "180+2"]
[Date "2023.07.25"]
[WhiteClock "0:00:01"]
[BlackClock "0:00:20"]
[Board "247"]

1. Nf3 {[%clk 0:02:59]}  d5 {[%clk 0:02:55]} 2. c4 {[%clk 0:02:58]}  d4 {[%clk 0:02:53]} 3. g3 {[%clk 0:02:55]}  c5 {[%clk 0:02:52]} 4. b4 {[%clk 0:02:54]}  b6 {[%clk 0:02:44]} 5. Bg2 {[%clk 0:02:52]}  Bb7 {[%clk 0:02:43]} 6. O-O {[%clk 0:02:52]}  Nd7 {[%clk 0:02:40]} 7. d3 {[%clk 0:02:47]}  g6 {[%clk 0:02:38]} 8. a3 {[%clk 0:02:35]}  Bg7 {[%clk 0:02:37]} 9. Bg5 {[%clk 0:02:35]}  f6 {[%clk 0:02:36]} 10. Bd2 {[%clk 0:02:30]}  e5 {[%clk 0:02:36]} 11. Qc1 {[%clk 0:02:30]}  h5 {[%clk 0:02:31]} 12. h4 {[%clk 0:02:25]}  Qe7 {[%clk 0:02:29]} 13. bxc5 {[%clk 0:02:12]}  Nxc5 {[%clk 0:02:23]} 14. a4 {[%clk 0:02:10]}  Nb3 {[%clk 0:02:20]} 15. Qb2 {[%clk 0:01:59]}  Nxa1 {[%clk 0:02:20]} 16. a5 {[%clk 0:01:53]}  Qd7 {[%clk 0:02:04]} 17. Qxa1 {[%clk 0:01:47]}  Ne7 {[%clk 0:02:01]} 18. Na3 {[%clk 0:01:34]}  O-O {[%clk 0:01:58]} 19. Qb2 {[%clk 0:01:33]}  bxa5 {[%clk 0:01:51]} 20. Bxa5 {[%clk 0:01:30]}  Rfb8 {[%clk 0:01:48]} 21. Qa2 {[%clk 0:01:20]}  Nc6 {[%clk 0:01:22]} 22. Bd2 {[%clk 0:01:08]}  Bf8 {[%clk 0:01:22]} 23. Nc2 {[%clk 0:01:05]}  a5 {[%clk 0:01:10]} 24. Kh2 {[%clk 0:01:02]}  Nb4 {[%clk 0:01:08]} 25. Qb1 {[%clk 0:00:57]}  Nxc2 {[%clk 0:01:02]} 26. Qxc2 {[%clk 0:00:58]}  Bc6 {[%clk 0:00:55]} 27. Bh3 {[%clk 0:00:50]}  Qb7 {[%clk 0:00:52]} 28. Be6+ {[%clk 0:00:46]}  Kg7 {[%clk 0:00:51]} 29. Bc1 {[%clk 0:00:37]}  Qe7 {[%clk 0:00:28]} 30. Bh3 {[%clk 0:00:29]}  Qb4 {[%clk 0:00:27]} 31. Nd2 {[%clk 0:00:01]}  a4 {[%clk 0:00:20]} 0-1


[Site "https://www.chess.com"]

[Event "Titled Tuesday Blitz July 25 Early 2023"]
[White "Llanos, Guillermo"]
[Black "Graham, Nathaniel"]
[WhiteFideId "100358"]
[BlackFideId "2007983"]
[WhiteElo "2355"]
[BlackElo "1973"]
[Result "1-0"]
[Round "3"]
[TimeControl "180+2"]
[Date "2023.07.25"]
[WhiteClock "0:01:38"]
[BlackClock "0:00:01"]
[Board "250"]

1. Nf3 {[%clk 0:03:00]}  d5 {[%clk 0:02:59]} 2. g3 {[%clk 0:02:59]}  c6 {[%clk 0:02:59]} 3. Bg2 {[%clk 0:02:59]}  Bg4 {[%clk 0:02:59]} 4. Ne5 {[%clk 0:02:57]}  Bh5 {[%clk 0:02:59]} 5. d4 {[%clk 0:02:52]}  Nd7 {[%clk 0:02:58]} 6. Nxd7 {[%clk 0:02:51]}  Qxd7 {[%clk 0:02:58]} 7. c4 {[%clk 0:02:47]}  e6 {[%clk 0:02:54]} 8. cxd5 {[%clk 0:02:43]}  cxd5 {[%clk 0:02:48]} 9. O-O {[%clk 0:02:41]}  Nf6 {[%clk 0:02:48]} 10. Nc3 {[%clk 0:02:39]}  Be7 {[%clk 0:02:46]} 11. Qb3 {[%clk 0:02:32]}  O-O {[%clk 0:02:42]} 12. Bf4 {[%clk 0:02:28]}  Rfc8 {[%clk 0:02:38]} 13. Rfc1 {[%clk 0:02:27]}  Rc4 {[%clk 0:02:03]} 14. e3 {[%clk 0:02:22]}  Rac8 {[%clk 0:01:53]} 15. a3 {[%clk 0:02:18]}  h6 {[%clk 0:01:21]} 16. h4 {[%clk 0:02:16]}  Ne4 {[%clk 0:01:00]} 17. Bf1 {[%clk 0:02:04]}  R4c6 {[%clk 0:00:48]} 18. Bb5 {[%clk 0:02:03]}  Bf3 {[%clk 0:00:18]} 19. Bxc6 {[%clk 0:02:01]}  Rxc6 {[%clk 0:00:15]} 20. Nxe4 {[%clk 0:01:58]}  dxe4 {[%clk 0:00:12]} 21. Rxc6 {[%clk 0:01:56]}  bxc6 {[%clk 0:00:08]} 22. Kh2 {[%clk 0:01:52]}  g5 {[%clk 0:00:03]} 23. hxg5 {[%clk 0:01:49]}  hxg5 {[%clk 0:00:03]} 24. Qb8+ {[%clk 0:01:49]}  Kg7 {[%clk 0:00:01]} 25. Be5+ {[%clk 0:01:45]}  f6 {[%clk 0:00:01]} 26. Bc7 {[%clk 0:01:38]} 1-0


[Site "https://www.chess.com"]